[Event "Early-Titled-Tuesday-Blitz-February-06-2024"]
[Site "Chess.com"]
[Date "2024.02.06"]
[Round "6"]
[White "Korchmar_Vasiliy"]
[Black "TrompeterImEther"]
[Result "1/2-1/2"]
[WhiteElo "2707"]
[BlackElo "2544"]
[TimeControl "180+1"]
[EndTime "9:09:08 PST"]
[Termination "Game drawn by repetition"]

1. e4 {[%clk 0:03:00.9]} 1... e5 {[%clk 0:02:59.2]} 2. Nf3 {[%clk 0:03:00.9]}
2... Nc6 {[%clk 0:02:59.1]} 3. Bc4 {[%clk 0:03:01.5]} 3... Bc5 {[%clk
0:02:56.8]} 4. c3 {[%clk 0:03:01.3]} 4... Nf6 {[%clk 0:02:55.6]} 5. d3 {[%clk
0:03:01.9]} 5... d6 {[%clk 0:02:54.3]} 6. Bg5 {[%clk 0:03:02.1]} 6... h6 {[%clk
0:02:53.5]} 7. Bh4 {[%clk 0:03:01.5]} 7... a5 {[%clk 0:02:44.7]} 8. O-O {[%clk
0:02:58.8]} 8... g5 {[%clk 0:02:43.7]} 9. Bg3 {[%clk 0:02:58.8]} 9... Ba7 {[%clk
0:02:40.1]} 10. Nbd2 {[%clk 0:02:50.2]} 10... Qe7 {[%clk 0:02:31.1]} 11. Kh1
{[%clk 0:02:46.4]} 11... Be6 {[%clk 0:02:29.2]} 12. Bb5 {[%clk 0:02:45.1]} 12...
Bd7 {[%clk 0:02:26.4]} 13. d4 {[%clk 0:02:41.3]} 13... exd4 {[%clk 0:02:24.8]}
14. Bxc6 {[%clk 0:02:35]} 14... Bxc6 {[%clk 0:02:24.7]} 15. Nxd4 {[%clk
0:02:29.3]} 15... Bxd4 {[%clk 0:02:13.7]} 16. cxd4 {[%clk 0:02:28.7]} 16... d5
{[%clk 0:02:03.7]} 17. exd5 {[%clk 0:01:47.3]} 17... Bxd5 {[%clk 0:02:00.9]} 18.
Re1 {[%clk 0:01:48]} 18... Be6 {[%clk 0:01:59.6]} 19. Be5 {[%clk 0:01:48.6]}
19... O-O {[%clk 0:01:55.4]} 20. Qf3 {[%clk 0:01:21.8]} 20... Nd5 {[%clk
0:01:48.1]} 21. Qh5 {[%clk 0:01:21.7]} 21... Kh7 {[%clk 0:01:42.7]} 22. Nf3
{[%clk 0:01:11.5]} 22... f6 {[%clk 0:01:40.8]} 23. Bg3 {[%clk 0:00:40.4]} 23...
Qf7 {[%clk 0:01:39.3]} 24. Qxf7+ {[%clk 0:00:40.6]} 24... Bxf7 {[%clk
0:01:40.2]} 25. Rac1 {[%clk 0:00:39]} 25... c6 {[%clk 0:01:38.8]} 26. a3 {[%clk
0:00:39.5]} 26... Rfd8 {[%clk 0:01:33.8]} 27. Nd2 {[%clk 0:00:39.2]} 27... Kg6
{[%clk 0:01:27.6]} 28. Nc4 {[%clk 0:00:39.6]} 28... Rd7 {[%clk 0:01:20.7]} 29.
Nd6 {[%clk 0:00:39.4]} 29... Bg8 {[%clk 0:01:19.7]} 30. Ne4 {[%clk 0:00:35.7]}
30... Re8 {[%clk 0:01:07.3]} 31. Nc5 {[%clk 0:00:31.3]} 31... Rde7 {[%clk
0:01:07.1]} 32. f3 {[%clk 0:00:24.9]} 32... h5 {[%clk 0:00:59.7]} 33. Nxb7
{[%clk 0:00:20.7]} 33... h4 {[%clk 0:00:55]} 34. Bf2 {[%clk 0:00:20.5]} 34...
Nf4 {[%clk 0:00:55.4]} 35. Nd6 {[%clk 0:00:15.7]} 35... Rxe1+ {[%clk 0:00:49.2]}
36. Rxe1 {[%clk 0:00:16.6]} 36... Rd8 {[%clk 0:00:48.8]} 37. Re8 {[%clk
0:00:03.2]} 37... Rxe8 {[%clk 0:00:39.9]} 38. Nxe8 {[%clk 0:00:04.1]} 38... Nd3
{[%clk 0:00:40.1]} 39. Kg1 {[%clk 0:00:04.6]} 39... Nxb2 {[%clk 0:00:40.1]} 40.
Nd6 {[%clk 0:00:05]} 40... Bd5 {[%clk 0:00:38.9]} 41. Kf1 {[%clk 0:00:04.3]}
41... Nd3 {[%clk 0:00:31.7]} 42. Nb7 {[%clk 0:00:03.8]} 42... a4 {[%clk
0:00:21.1]} 43. Nc5 {[%clk 0:00:04.2]} 43... Nxc5 {[%clk 0:00:21]} 44. dxc5
{[%clk 0:00:04]} 44... Kf5 {[%clk 0:00:21]} 45. Bd4 {[%clk 0:00:04.5]} 45... Ke6
{[%clk 0:00:18.6]} 46. Kf2 {[%clk 0:00:05]} 46... f5 {[%clk 0:00:18.3]} 47. g3
{[%clk 0:00:05.5]} 47... hxg3+ {[%clk 0:00:18.1]} 48. hxg3 {[%clk 0:00:06.4]}
48... g4 {[%clk 0:00:18.7]} 49. f4 {[%clk 0:00:06.4]} 49... Be4 {[%clk
0:00:18.4]} 50. Ke3 {[%clk 0:00:06.9]} 50... Kd5 {[%clk 0:00:19.1]} 51. Be5
{[%clk 0:00:03.3]} 51... Kxc5 {[%clk 0:00:18.2]} 52. Bf6 {[%clk 0:00:03.5]}
52... Kc4 {[%clk 0:00:18.5]} 53. Bg7 {[%clk 0:00:03.3]} 53... Kd5 {[%clk
0:00:15.4]} 54. Kd2 {[%clk 0:00:03.3]} 54... Kc4 {[%clk 0:00:15.2]} 55. Ke3
{[%clk 0:00:03.6]} 55... c5 {[%clk 0:00:14.2]} 56. Bf8 {[%clk 0:00:03.7]} 56...
Kb5 {[%clk 0:00:14.2]} 57. Be7 {[%clk 0:00:03.8]} 57... Kc6 {[%clk 0:00:12.9]}
58. Bf8 {[%clk 0:00:03.9]} 58... Kd5 {[%clk 0:00:13.4]} 59. Be7 {[%clk
0:00:04.3]} 59... c4 {[%clk 0:00:13.8]} 60. Kd2 {[%clk 0:00:03.9]} 60... Bg2
{[%clk 0:00:12.6]} 61. Ke3 {[%clk 0:00:03]} 61... Bf1 {[%clk 0:00:12.1]} 62. Kd2
{[%clk 0:00:03]} 62... Bd3 {[%clk 0:00:12.3]} 63. Ke3 {[%clk 0:00:03.3]} 63...
Bf1 {[%clk 0:00:11.4]} 64. Bf6 {[%clk 0:00:03.7]} 64... Kc5 {[%clk 0:00:10.3]}
65. Bc3 {[%clk 0:00:04]} 65... Bd3 {[%clk 0:00:10.4]} 66. Be5 {[%clk 0:00:04.4]}
66... Be4 {[%clk 0:00:10.9]} 67. Bc3 {[%clk 0:00:04.8]} 67... Kd5 {[%clk
0:00:10.9]} 68. Be5 {[%clk 0:00:05.4]} 68... Bd3 {[%clk 0:00:08.6]} 69. Bc3
{[%clk 0:00:05.9]} 69... Be4 {[%clk 0:00:07.5]} 70. Be5 {[%clk 0:00:06.3]} 70...
c3 {[%clk 0:00:08.4]} 71. Bxc3 {[%clk 0:00:06.9]} 71... Kc4 {[%clk 0:00:09.3]}
72. Bb4 {[%clk 0:00:07.5]} 72... Kb3 {[%clk 0:00:10.2]} 73. Kd4 {[%clk
0:00:07.3]} 73... Bc2 {[%clk 0:00:09.1]} 74. Ke5 {[%clk 0:00:07.9]} 74... Be4
{[%clk 0:00:10]} 75. Bd6 {[%clk 0:00:08.4]} 75... Bc2 {[%clk 0:00:10.9]} 76. Bf8
{[%clk 0:00:09.1]} 76... Be4 {[%clk 0:00:11.8]} 77. Kf6 {[%clk 0:00:09.8]} 77...
Bc2 {[%clk 0:00:12.7]} 78. Kg5 {[%clk 0:00:10.5]} 78... Be4 {[%clk 0:00:13.6]}
79. Be7 {[%clk 0:00:11]} 79... Bc2 {[%clk 0:00:14.5]} 80. Kh4 {[%clk 0:00:11.7]}
80... Be4 {[%clk 0:00:15.4]} 81. Bb4 {[%clk 0:00:12.2]} 81... Bc2 {[%clk
0:00:16.3]} 82. Kg5 {[%clk 0:00:13]} 82... Be4 {[%clk 0:00:17.2]} 83. Bd6 {[%clk
0:00:13.5]} 83... Bc2 {[%clk 0:00:18.1]} 84. Bb4 {[%clk 0:00:14.2]} 84... Be4
{[%clk 0:00:19]} 85. Bd6 {[%clk 0:00:15]} 85... Bc2 {[%clk 0:00:19.9]} 86. Bb4
{[%clk 0:00:15.9]} 1/2-1/2

[Event "Early-Titled-Tuesday-Blitz-February-06-2024"]
[Site "Chess.com"]
[Date "2024.02.06"]
[Round "6"]
[White "Herzog2012"]
[Black "Aradhya2000"]
[Result "1/2-1/2"]
[WhiteElo "2532"]
[BlackElo "2690"]
[TimeControl "180+1"]
[EndTime "9:09:11 PST"]
[Termination "Game drawn by stalemate"]

1. e4 {[%clk 0:03:00.9]} 1... e5 {[%clk 0:02:59.6]} 2. Nc3 {[%clk 0:02:49.8]}
2... Nf6 {[%clk 0:02:59.3]} 3. g3 {[%clk 0:02:49.8]} 3... d5 {[%clk 0:02:58.8]}
4. exd5 {[%clk 0:02:50.1]} 4... c6 {[%clk 0:02:59.4]} 5. d4 {[%clk 0:02:49]}
5... exd4 {[%clk 0:02:48.8]} 6. Qxd4 {[%clk 0:02:49.9]} 6... cxd5 {[%clk
0:02:48.9]} 7. Bg5 {[%clk 0:02:46.8]} 7... Nc6 {[%clk 0:02:18.1]} 8. Qa4 {[%clk
0:02:32.2]} 8... d4 {[%clk 0:02:09.3]} 9. O-O-O {[%clk 0:02:13.1]} 9... Bd7
{[%clk 0:01:56.8]} 10. Ne4 {[%clk 0:01:31.5]} 10... Be7 {[%clk 0:01:46.4]} 11.
Bxf6 {[%clk 0:01:31]} 11... gxf6 {[%clk 0:01:45.2]} 12. Qb3 {[%clk 0:01:08.4]}
12... f5 {[%clk 0:01:27.7]} 13. Nd2 {[%clk 0:01:02.8]} 13... Na5 {[%clk
0:01:27.6]} 14. Qd5 {[%clk 0:00:55.8]} 14... Bc6 {[%clk 0:01:27.7]} 15. Qxd8+
{[%clk 0:00:55.7]} 15... Rxd8 {[%clk 0:01:27.5]} 16. Ngf3 {[%clk 0:00:56.4]}
16... f4 {[%clk 0:00:58.5]} 17. Bd3 {[%clk 0:00:44.2]} 17... Kf8 {[%clk
0:00:55.6]} 18. Rhe1 {[%clk 0:00:40.2]} 18... fxg3 {[%clk 0:00:54.2]} 19. hxg3
{[%clk 0:00:31.4]} 19... Bd5 {[%clk 0:00:54.2]} 20. a3 {[%clk 0:00:30.2]} 20...
Nc6 {[%clk 0:00:53.4]} 21. Be4 {[%clk 0:00:27.9]} 21... h5 {[%clk 0:00:45.4]}
22. Bxd5 {[%clk 0:00:17.5]} 22... Rxd5 {[%clk 0:00:45.2]} 23. Re4 {[%clk
0:00:17.5]} 23... Kg7 {[%clk 0:00:44.3]} 24. Nb3 {[%clk 0:00:17.5]} 24... Bf6
{[%clk 0:00:41.9]} 25. Nbxd4 {[%clk 0:00:16.5]} 25... Rhd8 {[%clk 0:00:22.6]}
26. c3 {[%clk 0:00:10.4]} 26... b5 {[%clk 0:00:18.7]} 27. Kc2 {[%clk 0:00:04.3]}
27... Nxd4+ {[%clk 0:00:17.9]} 28. Nxd4 {[%clk 0:00:04.3]} 28... a5 {[%clk
0:00:18.2]} 29. Rd2 {[%clk 0:00:03.7]} 29... b4 {[%clk 0:00:17.7]} 30. axb4
{[%clk 0:00:03.7]} 30... axb4 {[%clk 0:00:18.6]} 31. Nf3 {[%clk 0:00:04.3]}
31... bxc3 {[%clk 0:00:11.1]} 32. bxc3 {[%clk 0:00:03.9]} 32... Rf5 {[%clk
0:00:04.3]} 33. Rxd8 {[%clk 0:00:03.1]} 33... Bxd8 {[%clk 0:00:05.2]} 34. Re3
{[%clk 0:00:03.3]} 34... Bb6 {[%clk 0:00:04.6]} 35. Rd3 {[%clk 0:00:03.7]} 35...
Bxf2 {[%clk 0:00:04.7]} 36. Nd4 {[%clk 0:00:04.2]} 36... Rg5 {[%clk 0:00:04.2]}
37. Kd2 {[%clk 0:00:01.2]} 37... Kg6 {[%clk 0:00:04.2]} 38. Ne2 {[%clk
0:00:01.8]} 38... Rf5 {[%clk 0:00:03.4]} 39. Nf4+ {[%clk 0:00:01.9]} 39... Kg5
{[%clk 0:00:03.2]} 40. Nh3+ {[%clk 0:00:01.9]} 40... Kg4 {[%clk 0:00:03.7]} 41.
Nxf2+ {[%clk 0:00:02.8]} 41... Rxf2+ {[%clk 0:00:03.8]} 42. Ke1 {[%clk
0:00:03.2]} 42... Rg2 {[%clk 0:00:03.9]} 43. Rd7 {[%clk 0:00:02.5]} 43... Rxg3
{[%clk 0:00:04]} 44. Rxf7 {[%clk 0:00:02.7]} 44... Rxc3 {[%clk 0:00:04.7]} 45.
Rg7+ {[%clk 0:00:02.4]} 45... Kh3 {[%clk 0:00:05.1]} 46. Kf2 {[%clk 0:00:02.4]}
46... Rc2+ {[%clk 0:00:05.5]} 47. Kf3 {[%clk 0:00:02.3]} 47... h4 {[%clk
0:00:06.4]} 48. Rh7 {[%clk 0:00:02.5]} 48... Ra2 {[%clk 0:00:06.6]} 49. Rh8
{[%clk 0:00:02.2]} 49... Ra3+ {[%clk 0:00:06.6]} 50. Kf2 {[%clk 0:00:02.5]}
50... Ra2+ {[%clk 0:00:07.4]} 51. Kf3 {[%clk 0:00:03]} 51... Ra1 {[%clk
0:00:07.6]} 52. Kf2 {[%clk 0:00:02.7]} 52... Rb1 {[%clk 0:00:08.3]} 53. Rh7
{[%clk 0:00:03.1]} 53... Rc1 {[%clk 0:00:08.5]} 54. Rh8 {[%clk 0:00:03.1]} 54...
Rc2+ {[%clk 0:00:08.9]} 55. Kf1 {[%clk 0:00:03.3]} 55... Kg3 {[%clk 0:00:08.5]}
56. Rg8+ {[%clk 0:00:03.4]} 56... Kh2 {[%clk 0:00:08.8]} 57. Rh8 {[%clk
0:00:04]} 57... h3 {[%clk 0:00:09.4]} 58. Rh7 {[%clk 0:00:04.7]} 58... Ra2
{[%clk 0:00:09.6]} 59. Rh8 {[%clk 0:00:04.5]} 59... Ra7 {[%clk 0:00:09.5]} 60.
Rh6 {[%clk 0:00:03.2]} 60... Rf7+ {[%clk 0:00:10]} 61. Ke2 {[%clk 0:00:03.1]}
61... Rg7 {[%clk 0:00:10.2]} 62. Kf2 {[%clk 0:00:03]} 62... Rf7+ {[%clk
0:00:10.7]} 63. Ke2 {[%clk 0:00:03]} 63... Rf4 {[%clk 0:00:11.1]} 64. Rg6 {[%clk
0:00:02.2]} 64... Kh1 {[%clk 0:00:09.7]} 65. Rg8 {[%clk 0:00:02.3]} 65... h2
{[%clk 0:00:09.9]} 66. Rg7 {[%clk 0:00:02.6]} 66... Rf5 {[%clk 0:00:10.2]} 67.
Rg8 {[%clk 0:00:02.9]} 67... Rf6 {[%clk 0:00:10.5]} 68. Rg7 {[%clk 0:00:03.3]}
68... Ra6 {[%clk 0:00:10.4]} 69. Kf2 {[%clk 0:00:02.6]} 69... Ra2+ {[%clk
0:00:10.9]} 70. Kf1 {[%clk 0:00:03.1]} 70... Ra1+ {[%clk 0:00:11.4]} 71. Kf2
{[%clk 0:00:03.6]} 71... Rg1 {[%clk 0:00:12]} 72. Rf7 {[%clk 0:00:03.6]} 72...
Rf1+ {[%clk 0:00:09.9]} 73. Kxf1 {[%clk 0:00:03.3]} 1/2-1/2

[Event "Early-Titled-Tuesday-Blitz-February-06-2024"]
[Site "Chess.com"]
[Date "2024.02.06"]
[Round "6"]
[White "Denis_Makhnyov"]
[Black "platy3"]
[Result "1-0"]
[WhiteElo "3032"]
[BlackElo "2929"]
[TimeControl "180+1"]
[EndTime "9:09:15 PST"]
[Termination "Denis_Makhnyov won on time"]

1. d4 {[%clk 0:03:00.9]} 1... Nf6 {[%clk 0:02:59.5]} 2. c4 {[%clk 0:03:01.1]}
2... e6 {[%clk 0:02:59.5]} 3. Nc3 {[%clk 0:02:59.9]} 3... Bb4 {[%clk 0:02:54.6]}
4. e3 {[%clk 0:03:00]} 4... O-O {[%clk 0:02:53]} 5. Bd3 {[%clk 0:03:00.1]} 5...
Re8 {[%clk 0:02:51.7]} 6. Ne2 {[%clk 0:02:58.6]} 6... d5 {[%clk 0:02:51.1]} 7.
a3 {[%clk 0:02:57]} 7... Bf8 {[%clk 0:02:50]} 8. O-O {[%clk 0:02:53.8]} 8... b6
{[%clk 0:02:41.5]} 9. e4 {[%clk 0:02:48.2]} 9... dxe4 {[%clk 0:02:34.4]} 10.
Nxe4 {[%clk 0:02:47.7]} 10... Bb7 {[%clk 0:02:32.9]} 11. Qc2 {[%clk 0:02:13.3]}
11... Nbd7 {[%clk 0:02:28.8]} 12. Rd1 {[%clk 0:02:06.3]} 12... Bxe4 {[%clk
0:02:04.4]} 13. Bxe4 {[%clk 0:02:05.8]} 13... Nxe4 {[%clk 0:02:05.1]} 14. Qxe4
{[%clk 0:02:06.5]} 14... c5 {[%clk 0:02:05.7]} 15. Be3 {[%clk 0:01:20]} 15...
Qc7 {[%clk 0:02:02.5]} 16. Rac1 {[%clk 0:01:14]} 16... Rad8 {[%clk 0:02:01]} 17.
h3 {[%clk 0:01:09.4]} 17... g6 {[%clk 0:01:57.3]} 18. Qf3 {[%clk 0:01:04.1]}
18... Bg7 {[%clk 0:01:52.7]} 19. Bf4 {[%clk 0:00:55.2]} 19... e5 {[%clk
0:01:37.5]} 20. Bh2 {[%clk 0:00:51.4]} 20... e4 {[%clk 0:01:30.9]} 21. Bxc7
{[%clk 0:00:30]} 21... exf3 {[%clk 0:01:30.6]} 22. Nc3 {[%clk 0:00:30.7]} 22...
Rc8 {[%clk 0:01:24.8]} 23. Nb5 {[%clk 0:00:30.7]} 23... cxd4 {[%clk 0:01:17.1]}
24. Nd6 {[%clk 0:00:29]} 24... fxg2 {[%clk 0:00:39.7]} 25. Nxe8 {[%clk
0:00:25.8]} 25... Rxe8 {[%clk 0:00:40.6]} 26. b4 {[%clk 0:00:24.2]} 26... Rc8
{[%clk 0:00:34.8]} 27. Bd6 {[%clk 0:00:21.7]} 27... Ne5 {[%clk 0:00:26.4]} 28.
Bxe5 {[%clk 0:00:21.6]} 28... Bxe5 {[%clk 0:00:26.4]} 29. c5 {[%clk 0:00:22.3]}
29... bxc5 {[%clk 0:00:13.4]} 30. Rxc5 {[%clk 0:00:20.6]} 30... Rxc5 {[%clk
0:00:13.6]} 31. bxc5 {[%clk 0:00:21.5]} 31... f6 {[%clk 0:00:14.2]} 32. c6
{[%clk 0:00:18]} 32... Kf7 {[%clk 0:00:14.4]} 33. Re1 {[%clk 0:00:16.9]} 33...
g5 {[%clk 0:00:11.9]} 34. Kxg2 {[%clk 0:00:16.5]} 34... Ke6 {[%clk 0:00:11]} 35.
Rc1 {[%clk 0:00:12]} 35... Bc7 {[%clk 0:00:10.2]} 36. Kf3 {[%clk 0:00:12.5]}
36... Kd5 {[%clk 0:00:10.6]} 37. Ke2 {[%clk 0:00:11.7]} 37... f5 {[%clk
0:00:07.6]} 38. f3 {[%clk 0:00:10.6]} 38... h5 {[%clk 0:00:07.4]} 39. Rg1 {[%clk
0:00:04.2]} 39... g4 {[%clk 0:00:03.8]} 40. fxg4 {[%clk 0:00:04.5]} 40... fxg4
{[%clk 0:00:04.1]} 41. hxg4 {[%clk 0:00:05.4]} 41... hxg4 {[%clk 0:00:04.2]} 42.
Rxg4 {[%clk 0:00:06.3]} 42... Kxc6 {[%clk 0:00:03.3]} 43. Rxd4 {[%clk 0:00:07]}
43... Bd6 {[%clk 0:00:04]} 44. Rd3 {[%clk 0:00:07.3]} 44... Bc5 {[%clk
0:00:03.4]} 45. Kd2 {[%clk 0:00:07.6]} 45... Kb5 {[%clk 0:00:03.8]} 46. Kc2
{[%clk 0:00:07.9]} 46... a5 {[%clk 0:00:03.4]} 47. Rh3 {[%clk 0:00:04.3]} 47...
a4 {[%clk 0:00:03.3]} 48. Kb2 {[%clk 0:00:04.8]} 48... Bd4+ {[%clk 0:00:02.8]}
49. Kb1 {[%clk 0:00:05.4]} 49... Bc5 {[%clk 0:00:03.7]} 50. Kc2 {[%clk
0:00:05.9]} 50... Kc4 {[%clk 0:00:03.5]} 51. Rh4+ {[%clk 0:00:04.4]} 51... Kb5
{[%clk 0:00:04.1]} 52. Kb2 {[%clk 0:00:03.3]} 52... Bd6 {[%clk 0:00:02.9]} 53.
Re4 {[%clk 0:00:02.2]} 53... Bc5 {[%clk 0:00:02.9]} 54. Re5 {[%clk 0:00:01.4]}
54... Kc4 {[%clk 0:00:03.2]} 55. Rf5 {[%clk 0:00:02.3]} 55... Bd4+ {[%clk
0:00:03.1]} 56. Kc2 {[%clk 0:00:03]} 56... Bc5 {[%clk 0:00:04]} 57. Rf3 {[%clk
0:00:03.4]} 57... Bd4 {[%clk 0:00:03.8]} 58. Rf4 {[%clk 0:00:02.8]} 58... Kd5
{[%clk 0:00:04.2]} 59. Kd3 {[%clk 0:00:03.2]} 59... Bc5 {[%clk 0:00:04.9]} 60.
Rxa4 {[%clk 0:00:04]} 60... Kc6 {[%clk 0:00:05.2]} 61. Kc4 {[%clk 0:00:04.6]}
61... Kb6 {[%clk 0:00:05.4]} 62. Kb3 {[%clk 0:00:05.3]} 62... Kb5 {[%clk
0:00:04]} 63. Rg4 {[%clk 0:00:06.2]} 63... Kb6 {[%clk 0:00:04.4]} 64. Rg5 {[%clk
0:00:06.4]} 64... Bf2 {[%clk 0:00:04.2]} 65. Kc4 {[%clk 0:00:06.3]} 65... Ka6
{[%clk 0:00:03.9]} 66. Rf5 {[%clk 0:00:05.2]} 66... Bg1 {[%clk 0:00:04]} 67. Kb4
{[%clk 0:00:05.1]} 67... Ka7 {[%clk 0:00:04.5]} 68. Kb5 {[%clk 0:00:04.7]} 68...
Be3 {[%clk 0:00:04.8]} 69. Rf7+ {[%clk 0:00:04.9]} 69... Ka8 {[%clk 0:00:05.1]}
70. Ka6 {[%clk 0:00:05.3]} 70... Kb8 {[%clk 0:00:05.6]} 71. Rb7+ {[%clk
0:00:05.1]} 71... Kc8 {[%clk 0:00:06.1]} 72. Rb3 {[%clk 0:00:05.6]} 72... Bd4
{[%clk 0:00:05.3]} 73. Kb5 {[%clk 0:00:04.5]} 73... Bf2 {[%clk 0:00:01.4]} 74.
Kc6 {[%clk 0:00:04.8]} 1-0

[Event "Early-Titled-Tuesday-Blitz-February-06-2024"]
[Site "Chess.com"]
[Date "2024.02.06"]
[Round "6"]
[White "Szparu"]
[Black "BogdanDeac"]
[Result "1/2-1/2"]
[WhiteElo "2826"]
[BlackElo "3019"]
[TimeControl "180+1"]
[EndTime "9:09:24 PST"]
[Termination "Game drawn - insufficient material"]

1. Nf3 {[%clk 0:03:00.9]} 1... d5 {[%clk 0:02:59.7]} 2. d4 {[%clk 0:03:00.5]}
2... Nf6 {[%clk 0:02:59.3]} 3. c4 {[%clk 0:03:00.6]} 3... e6 {[%clk 0:02:59.5]}
4. g3 {[%clk 0:03:00.8]} 4... dxc4 {[%clk 0:02:57.7]} 5. Bg2 {[%clk 0:03:01]}
5... a6 {[%clk 0:02:58.2]} 6. Ne5 {[%clk 0:03:01.1]} 6... Bb4+ {[%clk
0:02:57.4]} 7. Nc3 {[%clk 0:02:45.4]} 7... Nd5 {[%clk 0:02:56.7]} 8. Bd2 {[%clk
0:02:41]} 8... Nb6 {[%clk 0:02:56.4]} 9. Bc1 {[%clk 0:01:52.4]} 9... N8d7 {[%clk
0:02:39.9]} 10. Nxd7 {[%clk 0:01:43.1]} 10... Qxd7 {[%clk 0:02:37.3]} 11. O-O
{[%clk 0:01:42.5]} 11... O-O {[%clk 0:02:37.2]} 12. e4 {[%clk 0:01:42.7]} 12...
Qe7 {[%clk 0:01:26.7]} 13. Be3 {[%clk 0:01:42.3]} 13... e5 {[%clk 0:01:19.9]}
14. a3 {[%clk 0:01:17.7]} 14... exd4 {[%clk 0:01:13.2]} 15. Qxd4 {[%clk
0:01:18.6]} 15... Bxc3 {[%clk 0:00:43]} 16. Qxc3 {[%clk 0:01:19.5]} 16... Be6
{[%clk 0:00:43.1]} 17. a4 {[%clk 0:01:20.1]} 17... Rad8 {[%clk 0:00:41]} 18. a5
{[%clk 0:01:18.5]} 18... Rd3 {[%clk 0:00:35.4]} 19. Qc2 {[%clk 0:01:15.6]} 19...
Nd7 {[%clk 0:00:35.3]} 20. Rfe1 {[%clk 0:01:16.2]} 20... Ne5 {[%clk 0:00:34.7]}
21. h3 {[%clk 0:01:04.7]} 21... f6 {[%clk 0:00:15.9]} 22. Ra4 {[%clk 0:00:55.6]}
22... Rfd8 {[%clk 0:00:13]} 23. Kh2 {[%clk 0:00:38.5]} 23... Bd7 {[%clk
0:00:05.8]} 24. Rxc4 {[%clk 0:00:32.2]} 24... Nxc4 {[%clk 0:00:05.8]} 25. Qxd3
{[%clk 0:00:32.9]} 25... Bb5 {[%clk 0:00:06]} 26. Qb3 {[%clk 0:00:31.2]} 26...
Qf7 {[%clk 0:00:04.2]} 27. Qc3 {[%clk 0:00:28.5]} 27... Nxe3 {[%clk 0:00:02.8]}
28. Rxe3 {[%clk 0:00:29.4]} 28... Qc4 {[%clk 0:00:02.5]} 29. e5 {[%clk 0:00:26]}
29... Qxc3 {[%clk 0:00:02.3]} 30. Rxc3 {[%clk 0:00:26.9]} 30... fxe5 {[%clk
0:00:02.7]} 31. Bxb7 {[%clk 0:00:10.9]} 31... Rd2 {[%clk 0:00:03.3]} 32. Kg2
{[%clk 0:00:10.7]} 32... Rxb2 {[%clk 0:00:03.6]} 33. Rxc7 {[%clk 0:00:10.2]}
33... Kf8 {[%clk 0:00:03.9]} 34. Rc8+ {[%clk 0:00:07.8]} 34... Ke7 {[%clk
0:00:03.8]} 35. Ra8 {[%clk 0:00:05.3]} 35... Ra2 {[%clk 0:00:03.4]} 36. Ra7
{[%clk 0:00:05.5]} 36... Kf6 {[%clk 0:00:03.5]} 37. Bd5 {[%clk 0:00:03.1]} 37...
Rxa5 {[%clk 0:00:03.7]} 38. Rf7+ {[%clk 0:00:03.8]} 38... Kg6 {[%clk 0:00:04.1]}
39. Kh2 {[%clk 0:00:01.8]} 39... h6 {[%clk 0:00:04.1]} 40. Rf8 {[%clk
0:00:02.2]} 40... Bd7 {[%clk 0:00:03.9]} 41. Be4+ {[%clk 0:00:02.6]} 41... Kg5
{[%clk 0:00:03.2]} 42. h4+ {[%clk 0:00:03]} 42... Kh5 {[%clk 0:00:03.7]} 43.
Bf3+ {[%clk 0:00:01.9]} 43... Kg6 {[%clk 0:00:03.7]} 44. Be4+ {[%clk 0:00:01.8]}
44... Kh5 {[%clk 0:00:04.1]} 45. Bf3+ {[%clk 0:00:02.4]} 45... Bg4 {[%clk
0:00:04.7]} 46. Rf5+ {[%clk 0:00:02.5]} 46... g5 {[%clk 0:00:05]} 47. Bxg4+
{[%clk 0:00:03.3]} 47... Kxg4 {[%clk 0:00:05.3]} 48. Rf6 {[%clk 0:00:03.6]}
48... gxh4 {[%clk 0:00:05.7]} 49. f3+ {[%clk 0:00:03]} 49... Kg5 {[%clk
0:00:05.7]} 50. Rf8 {[%clk 0:00:03.2]} 50... hxg3+ {[%clk 0:00:05.9]} 51. Kxg3
{[%clk 0:00:03.3]} 51... h5 {[%clk 0:00:05.9]} 52. Rg8+ {[%clk 0:00:03.5]} 52...
Kf5 {[%clk 0:00:06.3]} 53. Rf8+ {[%clk 0:00:03.7]} 53... Kg6 {[%clk 0:00:06]}
54. Rg8+ {[%clk 0:00:04.1]} 54... Kf6 {[%clk 0:00:05.3]} 55. Rh8 {[%clk
0:00:04.3]} 55... Kg6 {[%clk 0:00:04.3]} 56. Rg8+ {[%clk 0:00:04.8]} 56... Kh7
{[%clk 0:00:04.8]} 57. Rg5 {[%clk 0:00:05.1]} 57... Kh6 {[%clk 0:00:05.1]} 58.
Rf5 {[%clk 0:00:05.6]} 58... Kg6 {[%clk 0:00:04.5]} 59. Rf8 {[%clk 0:00:06.1]}
59... Rb5 {[%clk 0:00:04.9]} 60. Rg8+ {[%clk 0:00:05.7]} 60... Kh7 {[%clk
0:00:05.3]} 61. Ra8 {[%clk 0:00:05.8]} 61... a5 {[%clk 0:00:05.4]} 62. Ra7+
{[%clk 0:00:06]} 62... Kg6 {[%clk 0:00:05.3]} 63. Ra8 {[%clk 0:00:06.8]} 63...
Kf5 {[%clk 0:00:04.6]} 64. Rh8 {[%clk 0:00:06.5]} 64... Ke6 {[%clk 0:00:03.8]}
65. Rxh5 {[%clk 0:00:06.6]} 65... Kd6 {[%clk 0:00:03.8]} 66. Kg4 {[%clk
0:00:05.3]} 66... Rb4+ {[%clk 0:00:03.7]} 67. Kg3 {[%clk 0:00:04.8]} 67... a4
{[%clk 0:00:04.2]} 68. Rh8 {[%clk 0:00:03.9]} 68... Kc5 {[%clk 0:00:03.9]} 69.
Ra8 {[%clk 0:00:04.8]} 69... Kc4 {[%clk 0:00:03.7]} 70. Kg4 {[%clk 0:00:05]}
70... Kb3+ {[%clk 0:00:03.4]} 71. Kf5 {[%clk 0:00:05.6]} 71... a3 {[%clk
0:00:03.1]} 72. Kxe5 {[%clk 0:00:04.8]} 72... a2 {[%clk 0:00:02.7]} 73. Rxa2
{[%clk 0:00:04.4]} 73... Kxa2 {[%clk 0:00:03.1]} 74. f4 {[%clk 0:00:05.1]} 74...
Kb3 {[%clk 0:00:03.1]} 75. f5 {[%clk 0:00:05.7]} 75... Kc4 {[%clk 0:00:02.9]}
76. f6 {[%clk 0:00:06.2]} 76... Rb7 {[%clk 0:00:02]} 77. Ke6 {[%clk 0:00:06.3]}
77... Rb6+ {[%clk 0:00:02.5]} 78. Ke7 {[%clk 0:00:06.7]} 78... Kd5 {[%clk
0:00:02.8]} 79. f7 {[%clk 0:00:05]} 79... Rb7+ {[%clk 0:00:03.4]} 80. Kf6 {[%clk
0:00:05.4]} 80... Rb8 {[%clk 0:00:03.4]} 81. Kg7 {[%clk 0:00:05.8]} 81... Rb7
{[%clk 0:00:02.8]} 82. Kg8 {[%clk 0:00:05.8]} 82... Rxf7 {[%clk 0:00:03.7]} 83.
Kxf7 {[%clk 0:00:06.1]} 1/2-1/2